[Event "Susha Chess Blitz Women 2022"]
[Site "Shusha"]
[Date "2022.09.24"]
[Round "5"]
[White "Mammadzada, Gunay"]
[Black "Ozturk Orenli, Kubra"]
[Result "0-1"]
[ECO "C99"]
[WhiteElo "2473"]
[BlackElo "2319"]
[Annotator "TA"]
[PlyCount "92"]
[EventDate "2022.09.24"]
[EventType "tourn"]
[EventCountry "AZE"]
[SourceTitle "playchess.com"]
[Source "ChessBase"]
[SourceQuality "1"]
[TimeControl "180+2"]

{[%evp 28,92,42,36,83,60,66,44,134,86,93,106,210,219,208,170,169,191,287,39,53,0,0,0,98,91,93,68,627,615,623,328,1589,608,29991,5608,2606,930,884,0,474,479,479,466,487,545,494,170,1003,576,580,577,545,-29988,0,0,0,-177,-148,-395,-396,-6125,-5820,-29991,-29992,-29992,-1940]} 1. e4 {[%emt 0:00:01]} e5 {[%emt 0:00:01]} 2. Nf3 {[%emt 0:00:01]} Nc6 {[%emt 0:00:00]} 3. Bb5 {[%emt 0:00:01]} a6 {[%emt 0:00:01]} 4. Ba4 {[%emt 0:00:01]} Nf6 {[%emt 0:00:01]} 5. O-O {[%emt 0:00:01]} b5 {[%emt 0:00:01]} 6. Bb3 {[%emt 0:00:01]} Be7 {[%emt 0:00:00]} 7. Re1 {[%emt 0:00:01]} d6 {[%emt 0:00:05]} 8. c3 {[%emt 0:00:01]} O-O {[%emt 0:00:01]} 9. h3 {[%emt 0:00:24]} Na5 {[%emt 0:00:02]} 10. Bc2 {[%emt 0:00:00]} c5 {[%emt 0:00:00]} 11. d4 Qc7 12. Nbd2 {[%emt 0:00:02]} cxd4 {[%emt 0:00:07]} 13. cxd4 {[%emt 0:00:01]} Bd7 {[%emt 0:00:02]} 14. Nf1 {[%emt 0:00:24]} Nc6 {[%emt 0:00:11]} 15. Be3 {[%emt 0:00:13]} Nb4 {[%emt 0:00:15] C99: Closed Ruy Lopez: Chigorin Defence: 11 d4 Qc7 12 Nbd2 cxd4.} (15... Rac8 $14) 16. Bb1 {[%emt 0:00:01]} a5 {[%emt 0:00:05]} 17. a3 Na6 {[%emt 0:00:06]} (17... Nc6 $14) 18. Bd3 {[%emt 0:00:04] [#]} (18. Ba2 $142) 18... exd4 $146 {[%emt 0:00:46]} ({Predecessor:} 18... Bd8 19. Ng3 Re8 20. Qe2 Qb7 21. Nh4 g6 22. Qf3 Nc7 23. Bg5 Kg7 24. Bxf6+ Bxf6 {½-½ (55) Michalko,P (1631)-Cajka,T (1830) Slovakia 2007}) 19. Bxd4 {[%emt 0:00:05]} b4 {[%emt 0:01:04]} (19... Nc5 $16) 20. e5 $18 {[%emt 0:00:46]} dxe5 {[%emt 0:00:07]} 21. Nxe5 {[%emt 0:00:02]} (21. Bxe5 $6 Qd8 $16) (21. Rxe5 $6 Bc6 $16) 21... Be6 {[%emt 0:00:15]} 22. Rc1 {[%emt 0:00:12]} Qb7 {[%emt 0:00:24]} (22... Nc5 {was called for.} 23. Bb5 bxa3) 23. a4 $2 {[%emt 0:00:45]} (23. Nc6 $18) 23... Rac8 $14 {[%emt 0:00:04] [#]} 24. Qe2 {[%emt 0:00:38]} (24. Nxf7 $1 $14 Bxf7 25. Bxa6 Qxa6 26. Rxe7) 24... Nc5 $11 {[%emt 0:00:01]} 25. Bb5 {[%emt 0:00:03]} Qd5 {[%emt 0:00:04]} (25... Nb3 $1 $11 26. Rxc8 Rxc8) 26. Rcd1 $1 $36 {[%emt 0:00:01][%cal Oe5c6][%mdl 2048] Nc6! is the strong threat. White is in control.} Qb7 {[%emt 0:00:02] Against Nc6} 27. Ng3 {[%emt 0:00:02]} Bd5 $2 {[%emt 0:00:03][%mdl 8192]} (27... Rfd8 $14) 28. Nf5 $18 {[%emt 0:00:03] aiming for Ng4.} Bd8 {[%emt 0:00:03]} 29. Qe3 {[%emt 0:00:02]} Bc7 $2 {[%emt 0:00:02]} (29... Ne6 30. Nd6 Qc7) 30. Qg3 {[%emt 0:00:01]} (30. Nd7 $142 Ne6 31. Nxf6+ gxf6 32. Bxf6) 30... g6 {[%emt 0:00:01]} 31. Qg5 {[%emt 0:00:02]} (31. Ng4 $142 Qb6 32. Nxf6+ Qxf6 33. Bxf6 h6 34. Qh4 h5 35. Qg5 Bd8 36. Nh6+ Kh7 37. Ng4 Kg8 38. Qh6 hxg4 39. Qh8#) 31... Bd8 {[%emt 0:00:02]} 32. Nd3 {[%emt 0:00:03]} (32. Nh6+ $142 Kh8 33. Nexf7+ $1 {[%mdl 512]} Qxf7 34. Nxf7+ Bxf7 35. Bxf6+ Bxf6 36. Qxf6+ Kg8 37. Re7) 32... Ne6 {[%emt 0:00:01] [#]} 33. Qh6 $2 {[%emt 0:00:02]} ({Better is} 33. Bxf6 $1 $18 {[%cal Rf5h6]} h5 (33... Bxf6 34. Qxf6) 34. Rxe6 $1 {[%mdl 512]} Bxe6 35. Nc5 $1 {[%mdl 512]}) 33... gxf5 {[%emt 0:00:01][%mdl 8192]} (33... Ne4 $11 34. f3 gxf5 35. fxe4 Nxd4 36. exd5 Nc2) 34. Bxf6 Bxf6 {[%emt 0:00:03]} 35. Qxf6 {[%emt 0:00:03]} Bxg2 {[%emt 0:00:02]} 36. Re3 {[%emt 0:00:02] White threatens Rg3+ and mate.} ({Weaker is} 36. Rxe6 fxe6 37. Qxe6+ (37. Qg5+ $2 Kh8 $19) 37... Kh8 38. Qe5+ Kg8 $16) 36... Bf3 {[%emt 0:00:01] [#]} 37. Rde1 {[%emt 0:00:02]} (37. Ba6 $1 {[%mdl 512]} Qd5 38. Bxc8 Rxc8 39. Rde1) 37... Nd4 $2 {[%emt 0:00:03]} (37... Bh5) 38. Nf4 {[%emt 0:00:02]} Ne6 {[%emt 0:00:02]} 39. Nxe6 (39. Rxf3 Qxf3 40. Nxe6 fxe6 41. Qxe6+ Kg7 42. Qd7+ Kg8 $16) 39... fxe6 {[%emt 0:00:01]} 40. Rxe6 {[%emt 0:00:03][%mdl 8192]} (40. Qxe6+ $18 Kh8 41. Qe5+ Qg7+ 42. Qxg7+ Kxg7 43. Rxf3) 40... Qg7+ $2 {[%emt 0:00:04]} (40... Rxf6 {mates} 41. Re8+ Kf7 42. Kh2 Rg6 43. R8e5 Rg2+ 44. Kh1 Rxf2+ 45. Kg1 Rxb2 46. Kf1 Bg2+ 47. Kg1 Bxh3 48. Rxf5+ Bxf5 49. Re2 Rg8+ 50. Kf2 Qg2+ 51. Ke3 Qe4+ 52. Kf2 Qf4+ 53. Ke1 Rg1#) 41. Qxg7+ $11 {[%emt 0:00:02]} Kxg7 {[%emt 0:00:00]} 42. Ra6 $2 {[%emt 0:00:03]} (42. Bd3 $11 {and White stays safe.}) 42... Kh8 $19 {[%emt 0:00:03] Strongly threatening ...Rg8+.} 43. Kh2 $2 {[%emt 0:00:02]} (43. Rxa5 Rg8+ 44. Kf1 Rg7 45. Re8+ Rxe8 46. Bxe8 Bg2+ 47. Ke2 Re7+ 48. Kd2 Rxe8) (43. Kf1 $17) 43... Rg8 {[%emt 0:00:02] ( -> ...Rg2+)} 44. Bf1 {[%emt 0:00:01] Inhibits Rg2+.} (44. Be2 Rg2+ 45. Kh1) 44... Rc2 {[%emt 0:00:01][%csl LRb2,LRf2]} 45. h4 {[%emt 0:00:02]} Rxf2+ {[%emt 0:00:02]} 46. Kh3 {[%emt 0:00:01] [#]} Rxf1 $1 {[%emt 0:00:01][%mdl 512] What a bad dream for White.  Weighted Error Value: White=1.66/Black=0.91} 0-1

[Event "Susha Chess Blitz Women 2022"]
[Site "Shusha"]
[Date "2022.09.24"]
[Round "5"]
[White "Efroimski, Marsel"]
[Black "Balajayeva, Khanim"]
[Result "1-0"]
[ECO "C48"]
[WhiteElo "2462"]
[BlackElo "2379"]
[Annotator "TA"]
[PlyCount "41"]
[EventDate "2022.09.24"]
[EventType "tourn"]
[EventCountry "AZE"]
[SourceTitle "playchess.com"]
[Source "ChessBase"]
[SourceQuality "1"]
[TimeControl "180+2"]

{[%evp 9,41,11,25,21,29,-59,-7,-24,33,25,92,42,49,56,83,60,75,52,56,39,360,352,372,357,1041,286,1487,1428,29995,29996,29996,1209,1302,1030]} 1. e4 {[%emt 0:00:00]} e5 {[%emt 0:00:00]} 2. Nf3 {[%emt 0:00:01]} Nc6 3. Nc3 Nf6 {[%emt 0:00:02]} 4. Bb5 {[%emt 0:00:01]} Nd4 {[%emt 0:00:01]} 5. Bc4 {[%emt 0:00:01]} Nxf3+ {[%emt 0:00:04]} 6. gxf3 {[%emt 0:00:02] C48: Four Knights: 4 Bb5, replies other than 4...Bb4.} Bc5 {[%emt 0:00:10]} 7. f4 {[%emt 0:00:04]} ({Better is} 7. Rg1 $11) 7... d6 {[%emt 0:00:05]} (7... d5 $15 8. exd5 Bg4) 8. Rg1 {[%emt 0:00:03] The position is equal.} O-O {[%emt 0:00:13]} (8... h5 $1 $11 9. Qf3 (9. Rxg7 Bg4 $17) 9... Ng4) 9. d3 $14 {[%emt 0:00:01] [#]} Be6 $146 {[%emt 0:00:28]} (9... Kh8 $11 {keeps the balance.}) ({Predecessor:} 9... Kh8 10. Qf3 c6 11. Bb3 a5 12. Bd2 b5 13. a4 Qb6 14. fxe5 dxe5 15. Bg5 Ne8 16. axb5 cxb5 {1-0 (76) Yudin,I (2232)-Vavulin,M (2092) Rybinsk 2010}) 10. Bb3 {[%emt 0:00:29]} (10. f5 $16 Bxc4 11. Bh6) 10... Bxb3 {[%emt 0:00:13]} 11. axb3 {[%emt 0:00:01]} Nd7 {[%emt 0:00:02]} 12. f5 {[%emt 0:00:17] [#] Threatens to win with Qg4.} f6 {[%emt 0:00:19]} 13. Qh5 {[%emt 0:00:10] White is more active.} Rf7 {[%emt 0:00:07]} 14. Rg3 {[%emt 0:00:04]} Nf8 $2 {[%emt 0:00:04][%mdl 8192] This move loses the game for Black.} (14... c6 $14) 15. Bh6 $18 {[%emt 0:00:49]} Qd7 {[%emt 0:00:36]} 16. Ke2 {[%emt 0:00:16] [#] Nd5 is the strong threat.} g6 $2 {[%emt 0:00:25]} (16... c6 17. Rag1 Kh8 18. Bxg7+ Rxg7) 17. Bxf8 $2 {[%emt 0:00:03]} (17. Rag1 {[%cal Rf5g6]} c6 18. fxg6 Nxg6 19. Rxg6+ Kh8 20. Bg7+ Rxg7 21. Rxg7 Qxg7 22. Rxg7 Kxg7 23. Qg4+ Kh8 24. Qd7) 17... Kxf8 $2 {[%emt 0:00:03]} (17... Raxf8 18. fxg6 Rg7 19. gxh7+ Kh8) 18. fxg6 {[%emt 0:00:02]} hxg6 {[%emt 0:00:01]} 19. Qh8+ {[%emt 0:00:05]} Ke7 {[%emt 0:00:01]} 20. Qxa8 {[%emt 0:00:06]} (20. Nd5+ $142 Ke6 21. Qh3+ f5 22. Rxg6+ Rf6 23. Rxf6#) 20... Rf8 {[%emt 0:00:02]} 21. Qxb7 {[%emt 0:00:01] Weighted Error Value: White=0.69/Black=0.80} 1-0

[Event "Susha Chess Blitz Women 2022"]
[Site "Shusha"]
[Date "2022.09.24"]
[Round "5"]
[White "Arabidze, Meri"]
[Black "Zawadzka, Jolanta"]
[Result "1-0"]
[ECO "A06"]
[WhiteElo "2422"]
[BlackElo "2401"]
[Annotator "TA"]
[PlyCount "169"]
[EventDate "2022.09.24"]
[EventType "tourn"]
[EventCountry "AZE"]
[SourceTitle "playchess.com"]
[Source "ChessBase"]
[SourceQuality "1"]
[TimeControl "180+2"]

{[%evp 9,169,11,13,16,10,8,7,14,12,20,11,-12,-7,-34,-44,-43,0,0,10,0,16,12,16,0,0,-11,43,37,50,29,46,40,47,12,52,19,20,13,33,3,7,0,12,18,31,28,345,343,327,323,918,908,866,900,888,871,997,999,965,922,3421,1290,6279,1118,1057,1088,1047,1047,991,966,952,839,820,820,1738,820,29945,29950,7837,1015,820,401,401,190,190,190,190,190,190,190,190,190,190,190,29939,12851,29953,190,190,0,5127,190,190,190,196,134,134,134,134,134,134,134,134,134,134,134,134,134,134,134,134,134,134,134,134,134,29975,29973,29975,29976,29975,29975,29975,29976,29976,29977,29976,29977,29981,29982,29985,29986,29988,29986,29993,386,386,386,386,326,29966,325,29972,29963,29987,29988,29989,29990,29990,29987,29997,1372]} 1. Nf3 {[%emt 0:00:01]} d5 {[%emt 0:00:01]} 2. g3 {[%emt 0:00:01]} Nf6 {[%emt 0:00:02]} 3. Bg2 {[%emt 0:00:01]} e6 {[%emt 0:00:01]} 4. O-O {[%emt 0:00:02]} Be7 {[%emt 0:00:01]} 5. c4 {[%emt 0:00:05]} d4 {[%emt 0:00:04]} 6. e3 {[%emt 0:00:14] A14: English Opening: 1...e6 with b3 by White.} c5 {[%emt 0:00:02]} 7. exd4 {[%emt 0:00:08]} cxd4 {[%emt 0:00:01]} 8. d3 {[%emt 0:00:08][%cal Ob2b4] The position is equal.} O-O {[%emt 0:00:02]} 9. Re1 {[%emt 0:00:02]} Nc6 {[%emt 0:00:02]} 10. a3 {[%emt 0:00:05]} a5 $1 {[%emt 0:00:01] Against b4} 11. Ne5 {[%emt 0:00:02]} Nxe5 {[%emt 0:00:07]} 12. Rxe5 {[%emt 0:00:01]} Bd6 {[%emt 0:00:02]} (12... Nd7 $5 {[%cal Rd7e5]} 13. Re1 Nc5 $11) 13. Re1 {[%emt 0:00:04]} h6 {[%emt 0:00:05]} 14. Nd2 {[%emt 0:00:06]} e5 {[%emt 0:00:04] [#]} 15. Rb1 $146 {[%emt 0:00:10]} ({Predecessor:} 15. Ne4 Nxe4 16. Bxe4 Qc7 17. Bd2 Qb6 18. b4 Qd8 19. bxa5 Bc7 20. Qb3 Bxa5 21. Bxa5 Qxa5 {1-0 (43) Rumpl,E (2314)-Froewis,G (2437) Austria 2015}) 15... Rb8 {[%emt 0:00:09]} 16. Ne4 {[%emt 0:00:25]} Nxe4 {[%emt 0:00:05]} 17. Bxe4 {[%emt 0:00:01]} Be6 {[%emt 0:00:06]} (17... b5 $11) 18. b4 $14 {[%emt 0:00:07]} axb4 {[%emt 0:00:02]} 19. axb4 {[%emt 0:00:01]} b6 {[%emt 0:00:14]} 20. Bd2 {[%emt 0:00:09]} Qd7 {[%emt 0:00:39]} 21. Bg2 {[%emt 0:00:07]} f5 {[%emt 0:00:08]} (21... Bf5 $5 {[%cal Rf5d3]}) 22. f4 {[%emt 0:00:04]} e4 {[%emt 0:00:13]} 23. dxe4 {[%emt 0:00:01] With the idea Rc1.} fxe4 {[%emt 0:00:02]} 24. Bxe4 {[%emt 0:00:17] White wants to play Rc1.} Bxc4 {[%emt 0:00:04]} 25. Qf3 {[%emt 0:00:03]} Be7 {[%emt 0:00:08]} 26. Bc6 {[%emt 0:00:14]} Qd6 {[%emt 0:00:06]} 27. b5 $36 {[%emt 0:00:01][%mdl 2048] Black must now prevent Qe4. White fights for an advantage.} Bf6 $2 {[%emt 0:00:03][%mdl 8192]} (27... Qf6 $1 $11 {and Black stays safe.}) 28. Bb4 $18 {[%emt 0:00:02]} Qd8 {[%emt 0:00:22]} 29. Bxf8 {[%emt 0:00:03]} Kxf8 {[%emt 0:00:02]} (29... Qxf8 30. Bd5+ Bxd5 31. Qxd5+ Kh8) 30. Re8+ {[%emt 0:00:30]} Qxe8 {[%emt 0:00:04]} 31. Bxe8 {[%emt 0:00:01]} Rxe8 {[%emt 0:00:02]} 32. Qc6 {[%emt 0:00:01][%csl LRb6,LRc4]} Be2 {[%emt 0:00:10]} 33. Qxb6 {[%emt 0:00:05]} d3 {[%emt 0:00:01]} 34. Qd6+ {[%emt 0:00:05]} Kg8 {[%emt 0:00:04]} 35. b6 {[%emt 0:00:06]} Rd8 {[%emt 0:00:11] [#]} 36. Qxd8+ $3 {[%emt 0:00:22][%mdl 512]} Bxd8 {[%emt 0:00:01]} 37. b7 {[%emt 0:00:01]} Bc7 {[%emt 0:00:01]} 38. b8=Q+ {[%emt 0:00:04]} Bxb8 39. Rxb8+ {[%emt 0:00:01][%mdl 4096] Endgame KR-KB} Kf7 {[%emt 0:00:01]} 40. Kf2 {[%emt 0:00:02]} Kf6 {[%emt 0:00:06]} 41. Ke3 {[%emt 0:00:08]} g6 {[%emt 0:00:03]} 42. Rb6+ {[%emt 0:00:04]} Kf5 {[%emt 0:00:03]} 43. h3 {[%emt 0:00:04]} h5 {[%emt 0:00:04]} 44. Rb5+ {[%emt 0:00:01]} (44. Rd6 $142 Bf1 45. g4+ hxg4 46. Rd5+ Ke6 47. Re5+ Kf6 48. hxg4) 44... Kf6 {[%emt 0:00:01]} 45. Re5 {[%emt 0:00:02]} (45. Ra5 $142 Bf1 46. Ra6+ Kg7 47. h4) 45... Bf1 {[%emt 0:00:02]} 46. Rg5 {[%emt 0:00:06]} (46. g4 $142) 46... Bxh3 {[%emt 0:00:03]} 47. Kxd3 {[%emt 0:00:03]} Bf5+ {[%emt 0:00:00]} 48. Kd4 {[%emt 0:00:01]} Ke6 {[%emt 0:00:02]} 49. Kc5 {[%emt 0:00:03]} Kf6 {[%emt 0:00:16]} 50. Kd6 {[%emt 0:00:01]} Be4 {[%emt 0:00:17]} 51. Re5 {[%emt 0:00:00]} Bf5 {[%emt 0:00:01]} (51... Bd3 $18 52. Kd5 Bf1) 52. Re8 $1 {[%emt 0:00:02] White wants to mate with Rf8+.} Kf7 {[%emt 0:00:02]} 53. Re7+ $2 {[%emt 0:00:00]} (53. Rb8 Kg7 54. Ke5 Bh3 55. Rb7+ Kh6 56. Kf6 Bg2 57. Rb8 Kh7 58. Re8) 53... Kf6 {[%emt 0:00:01]} 54. Re8 $2 {[%emt 0:00:02]} (54. Re3) 54... Kf7 $1 {[%emt 0:00:01]} 55. Re3 {[%emt 0:00:01]} (55. Rh8 Kg7 56. Rb8) 55... Kf6 {[%emt 0:00:01]} 56. Kd5 {[%emt 0:00:03]} g5 {[%emt 0:00:01] [#]} 57. Ra3 {[%emt 0:00:06]} (57. Rf3 $1 $18) 57... gxf4 $16 {[%emt 0:00:06]} 58. gxf4 {[%emt 0:00:01]} Be6+ {[%emt 0:00:02]} 59. Ke4 {[%emt 0:00:01]} Bf5+ {[%emt 0:00:01]} 60. Kf3 {[%emt 0:00:05]} h4 {[%emt 0:00:01]} 61. Ra6+ {[%emt 0:00:01]} Kf7 {[%emt 0:00:01]} 62. Rh6 {[%emt 0:00:02]} h3 {[%emt 0:00:01]} 63. Kg3 {[%emt 0:00:02]} Kg7 {[%emt 0:00:01]} 64. Ra6 {[%emt 0:00:02]} Kf7 {[%emt 0:00:02]} 65. Rb6 {[%emt 0:00:01]} Kg7 {[%emt 0:00:01]} 66. Rb2 {[%emt 0:00:04]} Kg6 {[%emt 0:00:01]} 67. Kh4 {[%emt 0:00:01] Rb6+ would kill now.} Kh6 $2 {[%emt 0:00:03][%mdl 8192]} (67... Kf6 $16 68. Kg3 Be6) 68. Rd2 {[%emt 0:00:02]} Kg6 {[%emt 0:00:01] [#]} 69. Rd6+ $1 {[%emt 0:00:01]} Kf7 {[%emt 0:00:03]} 70. Kg5 {[%emt 0:00:05]} Be4 {[%emt 0:00:03]} 71. Rh6 {[%emt 0:00:02]} Bg2 {[%emt 0:00:01]} 72. f5 {[%emt 0:00:01]} Kg7 {[%emt 0:00:01]} 73. Rh4 {[%emt 0:00:02]} Kf7 {[%emt 0:00:03]} 74. Rh7+ Kg8 75. Kg6 {[%emt 0:00:03]} Bf1 {[%emt 0:00:04]} 76. Rh4 {[%emt 0:00:02]} Bg2 {[%emt 0:00:03]} 77. f6 $2 {[%emt 0:00:00]} (77. Rd4 {mates} Kf8 78. f6 Ke8 79. Kg7 Bd5 80. Rxd5 h2 81. f7+ Ke7 82. f8=Q+ Ke6 83. Qf7#) 77... Bd5 $18 {[%emt 0:00:08]} 78. Rxh3 Be4+ {[%emt 0:00:01]} 79. Kg5 {[%emt 0:00:07] Intending Re3 and mate.} Kf7 $2 {[%emt 0:00:01]} (79... Bd5 $18 80. Rd3 Ba2) 80. Re3 {[%emt 0:00:01]} Bd5 $2 {[%emt 0:00:01]} (80... Bc2 $18 81. Re7+ Kf8) 81. Re7+ {[%emt 0:00:02] White mates.} Kf8 {[%emt 0:00:01]} 82. Kg6 {[%emt 0:00:01]} Bc4 {[%emt 0:00:01]} 83. Rd7 {[%emt 0:00:01][%cal Rd7d8]} Ke8 {[%emt 0:00:03]} 84. f7+ {[%emt 0:00:03]} Kf8 {[%emt 0:00:04]} 85. Rd8+ {[%emt 0:00:01] Weighted Error Value: White=0.67/Black=0.59} 1-0

[Event "Susha Chess Blitz Women 2022"]
[Site "Shusha"]
[Date "2022.09.24"]
[Round "5"]
[White "Fataliyeva, Ulviyya"]
[Black "Beydullayeva, Govhar"]
[Result "0-1"]
[ECO "A45"]
[WhiteElo "2408"]
[BlackElo "2346"]
[Annotator "TA"]
[PlyCount "90"]
[EventDate "2022.09.24"]
[EventType "tourn"]
[EventCountry "AZE"]
[SourceTitle "playchess.com"]
[Source "ChessBase"]
[SourceQuality "1"]
[TimeControl "180+2"]

{[%evp 9,90,14,17,18,38,27,73,26,29,40,87,76,72,27,23,20,28,24,34,-7,0,-50,-9,-15,-14,-40,-7,-20,-22,-177,-175,-470,-477,-580,-564,-566,-537,-732,-727,-945,-880,-878,-672,-648,-505,-592,-360,-380,-375,-586,-335,-840,-820,-735,-1322,-1262,-1216,-4266,-1104,-945,-687,-1772,-1752,-2831,-531,-464,0,-1754,-490,-5106,0,-1399,0,-5106,-5106,-4670,-2219,-29988,-29989,-29989,-29990,-29990,-29991]} 1. d4 {[%emt 0:00:01]} Nf6 {[%emt 0:00:02]} 2. Bg5 {[%emt 0:00:09]} d5 {[%emt 0:00:01]} 3. e3 {[%emt 0:00:34]} Nbd7 {[%emt 0:00:01]} 4. Nf3 {[%emt 0:00:17]} e6 {[%emt 0:00:09]} 5. c4 {[%emt 0:00:06]} h6 {[%emt 0:00:14]} 6. Bh4 {[%emt 0:00:02] D30: Queen's Gambit Declined: Systems without Nc3.} Bb4+ {[%emt 0:00:22]} 7. Nbd2 {[%emt 0:00:18]} b6 {[%emt 0:00:10] [#]} (7... O-O $11) 8. a3 $146 {[%emt 0:00:01]} (8. cxd5 $16 exd5 9. Qa4) ({Predecessor:} 8. cxd5 exd5 9. Bb5 O-O 10. O-O Bd6 11. Bc6 Rb8 12. Qa4 Bb7 13. Rfc1 Bxc6 14. Rxc6 {0-1 (21) Saez Hermosilla,C (2161)-Estay Torreblanca,O (2193) Santiago de Chile 2007}) 8... Be7 $11 {[%emt 0:00:05]} 9. cxd5 {[%emt 0:00:16]} exd5 {[%emt 0:00:05]} (9... Nxd5 $14 {feels stronger.} 10. Bg3 O-O) 10. Bb5 $16 {[%emt 0:00:01]} O-O {[%emt 0:00:21]} 11. O-O {[%emt 0:00:11]} Bb7 {[%emt 0:00:05]} 12. Rc1 {[%emt 0:00:02]} c5 {[%emt 0:00:02]} 13. dxc5 {[%emt 0:00:04]} bxc5 {[%emt 0:00:04]} 14. Nb3 {[%emt 0:00:07]} (14. b4 $5 {[%cal Rb4c5]}) 14... Rc8 {[%emt 0:00:10]} 15. Qe2 {[%emt 0:00:27]} (15. Na5 $11 Qxa5 16. Bxd7) 15... Ne4 {[%emt 0:00:15]} 16. Bxe7 {[%emt 0:00:03]} Qxe7 {[%emt 0:00:00]} 17. Rfd1 {[%emt 0:00:03]} f5 (17... Nb6 $5 {[%cal Rc5c4]} 18. Na5 Ba8 $11) 18. Nfd2 {[%emt 0:00:11] Strongly threatening Nxe4.} Ne5 {[%emt 0:00:31]} 19. Nxe4 $2 {[%emt 0:00:03] White is on the road to losing.} (19. f4 $11 Nxd2 20. Nxd2) 19... fxe4 $19 {[%emt 0:00:08]} 20. a4 $2 {[%emt 0:00:05]} (20. Rd2) 20... c4 {[%emt 0:00:03]} 21. Na5 {[%emt 0:00:02]} a6 {[%emt 0:00:05]} 22. Nxb7 {[%emt 0:00:10]} Qxb7 {[%emt 0:00:01]} 23. Bxa6 {[%emt 0:00:01]} Qxa6 {[%emt 0:00:00]} 24. Rxd5 {[%emt 0:00:00]} Nd3 {[%emt 0:00:02]} 25. Rf1 {[%emt 0:00:03]} Qxa4 {[%emt 0:00:06]} 26. Qg4 {[%emt 0:00:01]} Qe8 {[%emt 0:00:32]} 27. Rd7 {[%emt 0:00:14][%csl Gd7][%cal Rg4g7] [#]} Rf7 {[%emt 0:00:01]} 28. Rxf7 {[%emt 0:00:02]} Kxf7 {[%emt 0:00:01]} 29. f3 {[%emt 0:00:00]} (29. Ra1 $142 Rc7 30. Qh5+ Kf8 31. Qd5) 29... exf3 {[%emt 0:00:06]} 30. Rxf3+ {[%emt 0:00:06]} (30. Qxf3+ Kg8 31. b3) 30... Kg8 {[%emt 0:00:01]} 31. Rg3 {[%emt 0:00:02]} Rc7 {[%emt 0:00:04]} 32. Qd4 {[%emt 0:00:01]} Ne5 {[%emt 0:00:10] [#] aiming for ...Rd7.} 33. Qd6 {[%emt 0:00:05]} Rc6 {[%emt 0:00:05]} (33... Rd7 $142 34. Qa3 Rd1+ 35. Kf2 Qf7+ 36. Rf3 Rd2+ 37. Ke1 Nxf3+ 38. gxf3 Qd5 39. Qa8+ Qxa8 40. Kxd2 Qxf3 41. h3 Qxh3 42. Kc3 Qxe3+ 43. Kb4 g5 44. Kb5 g4 45. Kb4 g3 46. Kb5 g2 47. Kc6 g1=Q 48. Kd7 Qe4 49. Kd6 Qb6+ 50. Kd7 Qee6#) 34. Qd5+ {[%emt 0:00:03]} Re6 {[%emt 0:00:04]} 35. h4 Kh8 36. h5 {[%emt 0:00:06]} Nd3 {[%emt 0:00:04]} (36... Ra6 $142 {( -> ...Ra1+)} 37. Qd1 Nd3) 37. Qd4 {[%emt 0:00:01][%csl Gg3][%cal Rd4g7]} Ne5 {[%emt 0:00:02]} (37... Re7 $142 38. Qxc4 Ne5) 38. Qd5 {[%emt 0:00:02]} Qd7 {[%emt 0:00:01]} (38... Re7 $142 39. Qd4 Qb8) 39. Qa8+ {[%emt 0:00:02]} (39. Qxd7 $142 Nxd7 40. Rg4) 39... Qe8 {[%emt 0:00:02]} (39... Re8 $142 40. Qe4 Qd1+ 41. Kh2 Qxh5+ 42. Kg1 Rd8) 40. Qd5 $1 {[%emt 0:00:02]} Qd7 {[%emt 0:00:02]} (40... Ra6 $142 41. Qd1 Qb8) 41. Qa8+ $1 {[%emt 0:00:02]} Re8 {[%emt 0:00:01]} 42. Qa1 {[%emt 0:00:09]} Rd8 {[%emt 0:00:03]} (42... Qd2 $142 43. Qb1 Qe2) 43. Qa5 {[%emt 0:00:07]} Qd1+ {[%emt 0:00:01] Black mates.} 44. Kh2 {[%emt 0:00:01]} Qxh5+ {[%emt 0:00:02]} 45. Rh3 {[%emt 0:00:02]} Ng4+ {[%emt 0:00:02] Weighted Error Value: White=1.03/Black=0.59} 0-1